[Event "1st Bangalore GM-Open-A 2024"]
[Site "Bangalore"]
[Date "2024.01.24"]
[Round "8.20"]
[White "Sammed Jaykumar, Shete"]
[Black "Sahoo, Utkal Ranjan"]
[Result "0-1"]
[ECO "A10"]
[WhiteElo "2441"]
[BlackElo "2316"]
[Annotator "RC"]
[PlyCount "70"]
[EventDate "2024.01.20"]
[EventType "swiss"]
[EventCountry "IND"]
[SourceTitle "playchess.com"]
[Source "ChessBase"]
[SourceQuality "1"]
[TimeControl "5400+30"]

1. c4 {[%emt 0:00:03]} f5 {[%emt 0:01:28]} 2. g3 {[%emt 0:00:21]} Nf6 {[%emt 0:00:14]} 3. Bg2 {[%emt 0:00:30]} d6 {[%emt 0:00:57]} 4. Nf3 {[%emt 0:05:07]} e6 {[%emt 0:01:17]} 5. O-O {[%emt 0:00:42]} Be7 {[%emt 0:00:09]} 6. b4 {[%emt 0:01:34]} O-O {[%emt 0:04:31]} 7. Bb2 {[%emt 0:00:19]} Qe8 {[%emt 0:00:59]} 8. d3 {[%emt 0:06:22]} Qh5 {[%emt 0:04:29]} 9. Nbd2 {[%emt 0:04:47]} e5 {[%emt 0:03:22]} 10. c5 {[%emt 0:01:45]} f4 {[%emt 0:12:04]} 11. Qb3+ {[%emt 0:04:46]} Kh8 {[%emt 0:02:29]} 12. cxd6 {[%emt 0:04:59]} cxd6 {[%emt 0:01:27]} 13. gxf4 {[%emt 0:01:33]} exf4 {[%emt 0:08:03]} 14. Rac1 {[%emt 0:02:12]} Nc6 {[%emt 0:02:13]} 15. b5 {[%emt 0:01:01]} Ne5 {[%emt 0:01:48]} 16. Qb4 {[%emt 0:00:57]} Ng6 {[%emt 0:02:26]} 17. a4 {[%emt 0:15:04]} Bh3 {[%emt 0:10:11]} 18. Bxh3 {[%emt 0:04:41]} Qxh3 {[%emt 0:00:03]} 19. Bxf6 {[%emt 0:05:31]} Rxf6 {[%emt 0:01:29]} 20. Kh1 {[%emt 0:00:49]} Re6 {[%emt 0:03:18]} 21. Qc4 {[%emt 0:09:30]} Rf8 {[%emt 0:04:28]} 22. Ne4 {[%emt 0:04:47]} Nh4 {[%emt 0:17:04]} 23. Nxh4 {[%emt 0:00:06]} Bxh4 {[%emt 0:00:03]} 24. Rg1 {[%emt 0:00:17]} Rh6 {[%emt 0:07:20]} 25. f3 {[%emt 0:00:11]} Rh5 {[%emt 0:08:48]} 26. Rg2 {[%emt 0:02:28]} d5 {[%emt 0:01:56]} 27. Qc5 {[%emt 0:02:22]} Kg8 {[%emt 0:00:08]} 28. Qd4 {[%emt 0:03:39]} Qd7 {[%emt 0:00:46]} 29. Rc5 {[%emt 0:04:38]} b6 {[%emt 0:00:15]} 30. Rc6 {[%emt 0:00:07]} Qe7 {[%emt 0:00:33]} 31. Qc3 {[%emt 0:04:27]} dxe4 {[%emt 0:01:06]} 32. Rc7 {[%emt 0:00:06]} Qf6 {[%emt 0:00:18]} 33. Rgxg7+ {[%emt 0:07:42]} Kh8 {[%emt 0:00:02]} 34. d4 {[%emt 0:00:13]} Bg3 {[%emt 0:00:46]} 35. Rxa7 {[%emt 0:01:30]} Qh4 {[%emt 0:00:49]} 0-1

[Event "1st Bangalore GM-Open-A 2024"]
[Site "Bangalore"]
[Date "2024.01.24"]
[Round "8.21"]
[White "Srihari L"]
[Black "Mohammad Nubairshah Shaikh"]
[Result "1/2-1/2"]
[ECO "B48"]
[WhiteElo "2288"]
[BlackElo "2428"]
[Annotator "RC"]
[PlyCount "105"]
[EventDate "2024.01.20"]
[EventType "swiss"]
[EventCountry "IND"]
[SourceTitle "playchess.com"]
[Source "ChessBase"]
[SourceQuality "1"]
[TimeControl "5400+30"]

1. e4 {[%emt 0:00:03]} c5 {[%emt 0:09:18]} 2. Nf3 {[%emt 0:00:13]} e6 {[%emt 0:00:02]} 3. d4 {[%emt 0:00:09]} cxd4 {[%emt 0:00:04]} 4. Nxd4 {[%emt 0:00:05]} Nc6 {[%emt 0:00:06]} 5. Nc3 {[%emt 0:00:08]} Qc7 {[%emt 0:00:03]} 6. Be3 {[%emt 0:00:23]} a6 {[%emt 0:00:09]} 7. a3 {[%emt 0:00:11]} b5 {[%emt 0:00:16]} 8. Nxc6 {[%emt 0:01:25]} Qxc6 {[%emt 0:00:04]} 9. Qd2 {[%emt 0:02:59]} Bb7 {[%emt 0:07:42]} 10. O-O-O {[%emt 0:05:50]} Rc8 {[%emt 0:01:36]} 11. Bd4 {[%emt 0:04:13]} Nf6 {[%emt 0:02:58]} 12. Bd3 {[%emt 0:05:22]} Bc5 {[%emt 0:17:18]} 13. Bxc5 {[%emt 0:08:09]} Qxc5 {[%emt 0:00:02]} 14. Rhe1 {[%emt 0:01:24]} d6 {[%emt 0:12:50]} 15. f4 {[%emt 0:10:32]} O-O {[%emt 0:04:54]} 16. e5 {[%emt 0:08:37]} dxe5 {[%emt 0:01:57]} 17. fxe5 {[%emt 0:00:16]} Ng4 {[%emt 0:09:07]} 18. Be4 {[%emt 0:02:10]} Bc6 {[%emt 0:00:02]} 19. Bxc6 {[%emt 0:11:39]} Rxc6 {[%emt 0:00:02]} 20. Qf4 {[%emt 0:03:12]} f5 {[%emt 0:03:32]} 21. exf6 {[%emt 0:08:45]} Nxf6 {[%emt 0:00:02]} 22. Re5 {[%emt 0:00:14]} Qe7 {[%emt 0:08:43]} 23. Qd4 {[%emt 0:03:26]} Qc7 {[%emt 0:06:59]} 24. h3 {[%emt 0:02:42]} h6 {[%emt 0:06:41]} 25. Kb1 {[%emt 0:05:11]} Rb8 {[%emt 0:02:04]} 26. g4 {[%emt 0:02:34]} b4 {[%emt 0:00:30]} 27. axb4 {[%emt 0:02:30]} Rxb4 {[%emt 0:00:23]} 28. Qxb4 {[%emt 0:00:41]} Qxe5 {[%emt 0:00:01]} 29. Qb7 {[%emt 0:02:31]} Qc5 {[%emt 0:02:16]} 30. Qb8+ {[%emt 0:02:10]} Kh7 {[%emt 0:00:27]} 31. Qg3 {[%emt 0:00:09]} Qc4 {[%emt 0:02:39]} 32. g5 {[%emt 0:01:16]} hxg5 {[%emt 0:00:02]} 33. Qxg5 {[%emt 0:00:32]} Rc5 {[%emt 0:02:15]} 34. Qg2 {[%emt 0:01:01]} Qb4 {[%emt 0:01:26]} 35. Rg1 {[%emt 0:00:55]} Rc7 {[%emt 0:00:00]} 36. Qg6+ {[%emt 0:02:29]} Kh8 {[%emt 0:00:01]} 37. Rd1 {[%emt 0:00:17]} Qb8 {[%emt 0:00:34]} 38. Ne4 {[%emt 0:00:43]} Qf8 {[%emt 0:01:45]} 39. Ng5 {[%emt 0:01:43]} Re7 {[%emt 0:00:34]} 40. Rf1 {[%emt 0:01:43]} Qe8 {[%emt 0:00:27]} 41. Qd3 {[%emt 0:00:18]} Qb5 {[%emt 0:00:19]} 42. Qxb5 {[%emt 0:01:10]} axb5 {[%emt 0:00:01]} 43. Re1 {[%emt 0:00:01]} e5 {[%emt 0:00:53]} 44. Rxe5 {[%emt 0:00:04]} Rxe5 {[%emt 0:00:02]} 45. Nf7+ {[%emt 0:00:06]} Kh7 {[%emt 0:00:59]} 46. Nxe5 {[%emt 0:00:01]} Kh6 {[%emt 0:00:02]} 47. Ng4+ {[%emt 0:02:30]} Kg5 {[%emt 0:00:49]} 48. Nxf6 {[%emt 0:01:10]} gxf6 {[%emt 0:00:00]} 49. b3 {[%emt 0:00:32]} f5 {[%emt 0:00:39]} 50. c4 {[%emt 0:00:04]} bxc4 {[%emt 0:00:22]} 51. bxc4 {[%emt 0:00:01]} f4 {[%emt 0:00:47]} 52. Kc2 {[%emt 0:01:04]} Kh4 {[%emt 0:00:01]} 53. c5 {[%emt 0:00:42]} 1/2-1/2

[Event "1st Bangalore GM-Open-A 2024"]
[Site "Bangalore"]
[Date "2024.01.24"]
[Round "8.22"]
[White "Dzhumaev, Marat"]
[Black "De Silva, L M S T"]
[Result "1-0"]
[ECO "C45"]
[WhiteElo "2362"]
[BlackElo "2398"]
[Annotator "RC"]
[PlyCount "113"]
[EventDate "2024.01.20"]
[EventType "swiss"]
[EventCountry "IND"]
[SourceTitle "playchess.com"]
[Source "ChessBase"]
[SourceQuality "1"]
[TimeControl "5400+30"]

1. e4 {[%emt 0:00:28]} e5 {[%emt 0:00:17]} 2. Nf3 {[%emt 0:00:16]} Nc6 {[%emt 0:00:11]} 3. d4 {[%emt 0:00:33]} exd4 {[%emt 0:00:28]} 4. Nxd4 {[%emt 0:00:09]} Nf6 {[%emt 0:00:23]} 5. Nxc6 {[%emt 0:01:07]} bxc6 {[%emt 0:00:07]} 6. Nd2 {[%emt 0:00:06]} d6 {[%emt 0:04:51]} 7. Be2 {[%emt 0:14:56]} g6 {[%emt 0:01:02]} 8. Nc4 {[%emt 0:17:38]} Bg7 {[%emt 0:10:27]} 9. e5 {[%emt 0:02:18]} Nd5 {[%emt 0:16:15]} 10. Na5 {[%emt 0:00:27]} dxe5 {[%emt 0:06:55]} 11. c4 {[%emt 0:06:05]} Ne7 {[%emt 0:08:21]} 12. Qxd8+ {[%emt 0:00:10]} Kxd8 {[%emt 0:00:02]} 13. Be3 {[%emt 0:03:12]} Ke8 {[%emt 0:05:31]} 14. O-O-O {[%emt 0:00:21]} Be6 {[%emt 0:05:21]} 15. g4 {[%emt 0:17:19]} e4 {[%emt 0:04:44]} 16. Nb3 {[%emt 0:12:39]} f5 {[%emt 0:11:10]} 17. Nc5 {[%emt 0:00:10]} Kf7 {[%emt 0:02:34]} 18. f3 {[%emt 0:03:28]} exf3 {[%emt 0:03:03]} 19. Bxf3 {[%emt 0:00:08]} Bxc4 {[%emt 0:07:37]} 20. Rd7 {[%emt 0:00:10]} Rhd8 {[%emt 0:02:05]} 21. Rxc7 {[%emt 0:04:24]} Be5 {[%emt 0:01:45]} 22. Rb7 {[%emt 0:00:08]} Bd5 {[%emt 0:04:45]} 23. Bg5 {[%emt 0:04:07]} Bf6 {[%emt 0:02:08]} 24. Bxf6 {[%emt 0:02:16]} Kxf6 {[%emt 0:00:02]} 25. Rf1 {[%emt 0:02:44]} Bxf3 {[%emt 0:00:36]} 26. Rxf3 {[%emt 0:00:06]} Rd4 {[%emt 0:01:05]} 27. g5+ {[%emt 0:00:30]} Ke5 {[%emt 0:01:39]} 28. Re3+ {[%emt 0:03:24]} Kd6 {[%emt 0:00:29]} 29. b4 {[%emt 0:00:29]} Rxb4 {[%emt 0:00:22]} 30. Rxb4 {[%emt 0:00:46]} Nd5 {[%emt 0:00:43]} 31. Nb7+ {[%emt 0:01:54]} Kc7 {[%emt 0:00:07]} 32. Reb3 {[%emt 0:00:11]} Nxb4 {[%emt 0:00:37]} 33. Rxb4 {[%emt 0:00:06]} Rb8 {[%emt 0:00:47]} 34. Nc5 {[%emt 0:00:07]} Rxb4 {[%emt 0:00:26]} 35. Na6+ {[%emt 0:00:05]} Kb6 {[%emt 0:00:04]} 36. Nxb4 {[%emt 0:00:05]} Kc5 {[%emt 0:00:06]} 37. Nd3+ {[%emt 0:01:16]} Kd4 {[%emt 0:00:01]} 38. Kd2 {[%emt 0:00:10]} c5 {[%emt 0:00:19]} 39. Nf4 {[%emt 0:00:53]} c4 {[%emt 0:00:57]} 40. Ne6+ {[%emt 0:03:35]} Ke5 {[%emt 0:01:19]} 41. Nf8 {[%emt 0:00:32]} f4 {[%emt 0:00:09]} 42. Nxh7 {[%emt 0:00:11]} f3 {[%emt 0:00:32]} 43. Nf6 {[%emt 0:00:43]} Kf5 {[%emt 0:00:42]} 44. Nd5 {[%emt 0:01:06]} Ke4 {[%emt 0:00:07]} 45. Nc3+ {[%emt 0:00:39]} Kd4 {[%emt 0:00:45]} 46. Nd1 {[%emt 0:00:36]} Ke4 {[%emt 0:00:39]} 47. Kc3 {[%emt 0:00:36]} Kf4 {[%emt 0:00:06]} 48. Kd4 {[%emt 0:00:23]} Kxg5 {[%emt 0:01:00]} 49. Ke3 {[%emt 0:00:05]} Kh4 {[%emt 0:00:05]} 50. Nf2 {[%emt 0:01:03]} c3 {[%emt 0:00:06]} 51. Kd3 {[%emt 0:00:10]} g5 {[%emt 0:00:12]} 52. Kxc3 {[%emt 0:00:06]} g4 {[%emt 0:00:21]} 53. Kd4 {[%emt 0:00:16]} g3 {[%emt 0:02:01]} 54. hxg3+ {[%emt 0:00:05]} Kxg3 {[%emt 0:00:01]} 55. Ke3 {[%emt 0:00:06]} a5 {[%emt 0:00:33]} 56. a4 {[%emt 0:00:38]} Kg2 {[%emt 0:00:05]} 57. Ne4 {[%emt 0:00:06]} 1-0

[Event "1st Bangalore GM-Open-A 2024"]
[Site "Bangalore"]
[Date "2024.01.24"]
[Round "8.23"]
[White "Venkatesh, M.R."]
[Black "Saravana, Krishnan P."]
[Result "1-0"]
[ECO "A01"]
[WhiteElo "2392"]
[BlackElo "2269"]
[Annotator "RC"]
[PlyCount "117"]
[EventDate "2024.01.20"]
[EventType "swiss"]
[EventCountry "IND"]
[SourceTitle "playchess.com"]
[Source "ChessBase"]
[SourceQuality "1"]
[TimeControl "5400+30"]

1. b3 {[%emt 0:00:05]} d5 {[%emt 0:02:30]} 2. Bb2 {[%emt 0:00:15]} Bg4 {[%emt 0:01:16]} 3. f3 {[%emt 0:00:37]} Bf5 {[%emt 0:01:18]} 4. e4 {[%emt 0:05:47]} dxe4 {[%emt 0:01:26]} 5. Nc3 {[%emt 0:00:29]} e3 {[%emt 0:04:40]} 6. dxe3 {[%emt 0:01:34]} Qxd1+ {[%emt 0:01:25]} 7. Rxd1 {[%emt 0:00:19]} c6 {[%emt 0:00:49]} 8. e4 {[%emt 0:06:05]} Bg6 {[%emt 0:04:54]} 9. Nge2 {[%emt 0:08:13]} Nd7 {[%emt 0:05:21]} 10. h4 {[%emt 0:02:56]} h6 {[%emt 0:02:40]} 11. Nf4 {[%emt 0:15:46]} Bh7 {[%emt 0:04:42]} 12. Nd3 {[%emt 0:02:21]} e6 {[%emt 0:03:02]} 13. Be2 {[%emt 0:01:46]} O-O-O {[%emt 0:09:33]} 14. Kf2 {[%emt 0:08:04]} h5 {[%emt 0:06:13]} 15. Bc1 {[%emt 0:07:10]} Bd6 {[%emt 0:08:23]} 16. Be3 {[%emt 0:06:20]} Bb8 {[%emt 0:01:53]} 17. a4 {[%emt 0:02:56]} f5 {[%emt 0:08:08]} 18. e5 {[%emt 0:10:04]} Nh6 {[%emt 0:05:45]} 19. Bg5 {[%emt 0:02:30]} Rde8 {[%emt 0:01:59]} 20. Bxh6 {[%emt 0:00:30]} gxh6 {[%emt 0:00:07]} 21. f4 {[%emt 0:00:03]} Bg6 {[%emt 0:00:42]} 22. Nb2 {[%emt 0:01:45]} a6 {[%emt 0:05:20]} 23. Nc4 {[%emt 0:00:39]} Ba7+ {[%emt 0:00:54]} 24. Kf1 {[%emt 0:00:52]} Kc7 {[%emt 0:01:51]} 25. a5 {[%emt 0:01:40]} Nc5 {[%emt 0:00:51]} 26. Rh3 {[%emt 0:00:25]} Ne4 {[%emt 0:01:28]} 27. Nd6 {[%emt 0:11:03]} Re7 {[%emt 0:02:20]} 28. Ncxe4 {[%emt 0:00:27]} fxe4 {[%emt 0:00:14]} 29. Rg3 {[%emt 0:00:02]} Bh7 {[%emt 0:07:39]} 30. Bxh5 {[%emt 0:00:11]} e3 {[%emt 0:00:15]} 31. Bg6 {[%emt 0:02:48]} Rg7 {[%emt 0:04:35]} 32. h5 {[%emt 0:00:31]} Rf8 {[%emt 0:00:55]} 33. Ke2 {[%emt 0:00:32]} Bxg6 {[%emt 0:00:57]} 34. Rxg6 {[%emt 0:01:08]} Rxg6 {[%emt 0:02:47]} 35. hxg6 {[%emt 0:00:04]} Rg8 {[%emt 0:00:30]} 36. f5 {[%emt 0:01:50]} exf5 {[%emt 0:00:33]} 37. g7 {[%emt 0:00:26]} Kd7 {[%emt 0:00:33]} 38. Nb5+ {[%emt 0:00:42]} Ke6 {[%emt 0:00:06]} 39. Nxa7 {[%emt 0:00:07]} Rxg7 {[%emt 0:00:17]} 40. Kf3 {[%emt 0:00:49]} f4 {[%emt 0:00:34]} 41. Kxf4 {[%emt 0:00:33]} e2 {[%emt 0:00:59]} 42. Re1 {[%emt 0:00:18]} Rxg2 {[%emt 0:00:16]} 43. Nc8 {[%emt 0:00:07]} h5 {[%emt 0:00:19]} 44. Kf3 {[%emt 0:00:27]} Rg8 {[%emt 0:00:52]} 45. Nd6 {[%emt 0:00:42]} Kxe5 {[%emt 0:00:29]} 46. Nc4+ {[%emt 0:00:57]} Kd4 {[%emt 0:00:23]} 47. Rxe2 {[%emt 0:00:05]} h4 {[%emt 0:00:26]} 48. Rh2 {[%emt 0:00:34]} Kc3 {[%emt 0:00:41]} 49. Nd6 {[%emt 0:00:55]} Rf8+ {[%emt 0:00:34]} 50. Ke3 {[%emt 0:00:15]} Rb8 {[%emt 0:00:23]} 51. Rxh4 {[%emt 0:00:23]} Kxc2 {[%emt 0:00:16]} 52. Rb4 {[%emt 0:00:05]} Rd8 {[%emt 0:00:28]} 53. Nxb7 {[%emt 0:00:33]} Rd3+ {[%emt 0:00:33]} 54. Ke4 {[%emt 0:00:36]} Rxb3 {[%emt 0:00:14]} 55. Rb6 {[%emt 0:00:04]} Rb5 {[%emt 0:01:08]} 56. Kd4 {[%emt 0:00:52]} Kb3 {[%emt 0:00:25]} 57. Nd6 {[%emt 0:00:30]} c5+ {[%emt 0:00:26]} 58. Kd5 {[%emt 0:00:17]} Ka4 {[%emt 0:00:40]} 59. Nxb5 {[%emt 0:00:36]} 1-0

[Event "1st Bangalore GM-Open-A 2024"]
[Site "Bangalore"]
[Date "2024.01.24"]
[Round "8.24"]
[White "Ajay Santhosh Parvathareddy"]
[Black "Ritviz, Parab"]
[Result "0-1"]
[ECO "A47"]
[WhiteElo "2204"]
[BlackElo "2391"]
[Annotator "RC"]
[PlyCount "98"]
[EventDate "2024.01.20"]
[EventType "swiss"]
[EventCountry "IND"]
[SourceTitle "playchess.com"]
[Source "ChessBase"]
[SourceQuality "1"]
[TimeControl "5400+30"]

1. d4 {[%emt 0:00:01]} Nf6 {[%emt 0:03:39]} 2. Nf3 {[%emt 0:00:05]} e6 {[%emt 0:00:35]} 3. e3 {[%emt 0:00:21]} b6 {[%emt 0:00:52]} 4. b3 {[%emt 0:00:07]} Bb7 {[%emt 0:00:24]} 5. Bb2 {[%emt 0:00:08]} Be7 {[%emt 0:08:53]} 6. Be2 {[%emt 0:01:32]} O-O {[%emt 0:00:59]} 7. O-O {[%emt 0:00:05]} c5 {[%emt 0:02:05]} 8. dxc5 {[%emt 0:00:56]} bxc5 {[%emt 0:00:10]} 9. c4 {[%emt 0:00:11]} d6 {[%emt 0:05:40]} 10. Nc3 {[%emt 0:03:33]} Nbd7 {[%emt 0:02:44]} 11. Qc2 {[%emt 0:01:00]} Qc7 {[%emt 0:04:04]} 12. Rfd1 {[%emt 0:01:22]} a6 {[%emt 0:03:01]} 13. Rac1 {[%emt 0:15:12]} Bc6 {[%emt 0:03:11]} 14. Ne1 {[%emt 0:17:49]} Ne5 {[%emt 0:14:43]} 15. f4 {[%emt 0:01:06]} Ng6 {[%emt 0:02:15]} 16. Bf3 {[%emt 0:00:35]} Rad8 {[%emt 0:03:38]} 17. Bxc6 {[%emt 0:04:51]} Qxc6 {[%emt 0:00:05]} 18. Nf3 {[%emt 0:00:30]} Rfe8 {[%emt 0:06:22]} 19. f5 {[%emt 0:11:02]} Ne5 {[%emt 0:05:06]} 20. Nxe5 {[%emt 0:00:52]} dxe5 {[%emt 0:00:03]} 21. fxe6 {[%emt 0:01:09]} Qxe6 {[%emt 0:03:47]} 22. Rxd8 {[%emt 0:02:20]} Rxd8 {[%emt 0:01:02]} 23. Rd1 {[%emt 0:00:07]} e4 {[%emt 0:08:59]} 24. Rxd8+ {[%emt 0:03:59]} Bxd8 {[%emt 0:00:02]} 25. Qd2 {[%emt 0:03:23]} Ba5 {[%emt 0:01:47]} 26. h3 {[%emt 0:05:22]} h5 {[%emt 0:01:49]} 27. Qd1 {[%emt 0:02:56]} Qe5 {[%emt 0:00:34]} 28. Qe1 {[%emt 0:06:06]} Qd6 {[%emt 0:10:05]} 29. Qd1 {[%emt 0:04:41]} Qg3 {[%emt 0:04:42]} 30. Qe2 {[%emt 0:00:04]} Bc7 {[%emt 0:00:28]} 31. Kf1 {[%emt 0:01:47]} Qh2 {[%emt 0:02:46]} 32. Ke1 {[%emt 0:01:29]} Qg1+ {[%emt 0:00:15]} 33. Kd2 {[%emt 0:00:05]} Be5 {[%emt 0:01:34]} 34. Kc2 {[%emt 0:00:23]} Bxc3 {[%emt 0:00:35]} 35. Bxc3 {[%emt 0:00:07]} Nd7 {[%emt 0:00:14]} 36. Qd2 {[%emt 0:01:15]} Nf8 {[%emt 0:00:05]} 37. a3 {[%emt 0:00:31]} Qf1 {[%emt 0:00:10]} 38. Kb2 {[%emt 0:00:07]} Ne6 {[%emt 0:00:07]} 39. Qc2 {[%emt 0:01:12]} f5 {[%emt 0:01:10]} 40. Be5 {[%emt 0:00:55]} Qe1 {[%emt 0:00:52]} 41. Qc1 {[%emt 0:05:10]} Qe2+ {[%emt 0:00:05]} 42. Ka1 {[%emt 0:00:12]} f4 {[%emt 0:00:51]} 43. Bxf4 {[%emt 0:02:42]} Nxf4 {[%emt 0:00:05]} 44. exf4 {[%emt 0:00:05]} e3 {[%emt 0:00:06]} 45. Qb1 {[%emt 0:02:41]} Qxg2 {[%emt 0:00:44]} 46. Qd3 {[%emt 0:01:54]} e2 {[%emt 0:00:45]} 47. Qd8+ {[%emt 0:00:04]} Kh7 {[%emt 0:00:04]} 48. Qd3+ {[%emt 0:00:44]} Kh6 {[%emt 0:01:00]} 49. Qd6+ {[%emt 0:00:29]} Qg6 {[%emt 0:00:09]} 0-1

[Event "1st Bangalore GM-Open-A 2024"]
[Site "Bangalore"]
[Date "2024.01.24"]
[Round "8.25"]
[White "Thilakarathne, G M H"]
[Black "Daaevik Wadhawan"]
[Result "1/2-1/2"]
[ECO "B50"]
[WhiteElo "2391"]
[BlackElo "1997"]
[Annotator "RC"]
[PlyCount "63"]
[EventDate "2024.01.20"]
[EventType "swiss"]
[EventCountry "IND"]
[SourceTitle "playchess.com"]
[Source "ChessBase"]
[SourceQuality "1"]
[TimeControl "5400+30"]

1. e4 {[%emt 0:00:03]} c5 {[%emt 0:00:49]} 2. Nf3 {[%emt 0:00:06]} e6 {[%emt 0:00:06]} 3. b3 {[%emt 0:00:34]} Nc6 {[%emt 0:03:35]} 4. Bb2 {[%emt 0:00:04]} d6 {[%emt 0:05:37]} 5. Bb5 {[%emt 0:07:18]} e5 {[%emt 0:04:39]} 6. c3 {[%emt 0:13:16]} Nge7 {[%emt 0:09:39]} 7. d4 {[%emt 0:02:58]} Qc7 {[%emt 0:05:39]} 8. Na3 {[%emt 0:06:25]} a6 {[%emt 0:08:48]} 9. dxc5 {[%emt 0:16:32]} dxc5 {[%emt 0:00:24]} 10. Nc4 {[%emt 0:00:08]} Ng6 {[%emt 0:01:36]} 11. Bxc6+ {[%emt 0:00:07]} bxc6 {[%emt 0:04:56]} 12. Ne3 {[%emt 0:06:30]} Nf4 {[%emt 0:09:30]} 13. g3 {[%emt 0:06:34]} Ne6 {[%emt 0:01:31]} 14. h4 {[%emt 0:00:51]} h5 {[%emt 0:01:08]} 15. Nd2 {[%emt 0:13:53]} g6 {[%emt 0:02:33]} 16. Qf3 {[%emt 0:01:24]} Be7 {[%emt 0:03:30]} 17. Rd1 {[%emt 0:08:33]} a5 {[%emt 0:04:53]} 18. a4 {[%emt 0:02:17]} Rb8 {[%emt 0:01:56]} 19. O-O {[%emt 0:03:49]} f6 {[%emt 0:08:33]} 20. Bc1 {[%emt 0:01:01]} O-O {[%emt 0:01:29]} 21. Kh1 {[%emt 0:00:46]} Ng7 {[%emt 0:00:55]} 22. Qg2 {[%emt 0:00:43]} f5 {[%emt 0:08:17]} 23. f4 {[%emt 0:00:33]} Kh7 {[%emt 0:01:23]} 24. c4 {[%emt 0:04:22]} fxe4 {[%emt 0:01:44]} 25. Qxe4 {[%emt 0:01:32]} exf4 {[%emt 0:01:01]} 26. Rxf4 {[%emt 0:00:13]} Rxf4 {[%emt 0:01:41]} 27. gxf4 {[%emt 0:00:02]} Nf5 {[%emt 0:02:09]} 28. Rg1 {[%emt 0:01:20]} Qd6 {[%emt 0:02:59]} 29. Bb2 {[%emt 0:00:32]} Qe6 {[%emt 0:01:35]} 30. Be5 {[%emt 0:00:47]} Rb7 {[%emt 0:00:44]} 31. Nxf5 {[%emt 0:01:19]} Qxf5 {[%emt 0:00:19]} 32. Rg3 {[%emt 0:00:05]} 1/2-1/2

[Event "1st Bangalore GM-Open-A 2024"]
[Site "Bangalore"]
[Date "2024.01.24"]
[Round "8.26"]
[White "Rajarishi Karthi"]
[Black "Aradhya, Garg"]
[Result "1/2-1/2"]
[ECO "D24"]
[WhiteElo "2183"]
[BlackElo "2390"]
[Annotator "RC"]
[PlyCount "63"]
[EventDate "2024.01.20"]
[EventType "swiss"]
[EventCountry "IND"]
[SourceTitle "playchess.com"]
[Source "ChessBase"]
[SourceQuality "1"]
[TimeControl "5400+30"]

1. d4 {[%emt 0:00:11]} d5 {[%emt 0:00:02]} 2. c4 {[%emt 0:00:25]} e6 {[%emt 0:00:09]} 3. Nc3 {[%emt 0:00:47]} Nf6 {[%emt 0:00:04]} 4. Nf3 {[%emt 0:00:17]} dxc4 {[%emt 0:00:09]} 5. e3 {[%emt 0:01:05]} a6 {[%emt 0:00:11]} 6. a4 {[%emt 0:00:18]} b6 {[%emt 0:03:50]} 7. Bxc4 {[%emt 0:00:38]} Bb7 {[%emt 0:00:31]} 8. O-O {[%emt 0:01:47]} Bb4 {[%emt 0:02:56]} 9. Qe2 {[%emt 0:03:09]} O-O {[%emt 0:00:21]} 10. Rd1 {[%emt 0:01:08]} Nbd7 {[%emt 0:09:12]} 11. Bd2 {[%emt 0:10:02]} Qe7 {[%emt 0:01:05]} 12. Be1 {[%emt 0:07:38]} Rfd8 {[%emt 0:11:02]} 13. Rac1 {[%emt 0:03:48]} h6 {[%emt 0:08:22]} 14. Bb3 {[%emt 0:05:59]} c5 {[%emt 0:10:12]} 15. Bc2 {[%emt 0:10:31]} Rac8 {[%emt 0:05:46]} 16. dxc5 {[%emt 0:03:02]} Nxc5 {[%emt 0:03:32]} 17. Rxd8+ {[%emt 0:01:31]} Rxd8 {[%emt 0:00:34]} 18. Rd1 {[%emt 0:00:58]} Rxd1 {[%emt 0:03:00]} 19. Qxd1 {[%emt 0:00:55]} e5 {[%emt 0:10:52]} 20. Nb1 {[%emt 0:07:07]} Bxf3 {[%emt 0:06:09]} 21. gxf3 {[%emt 0:00:37]} Bxe1 {[%emt 0:02:43]} 22. Qxe1 {[%emt 0:00:10]} e4 {[%emt 0:00:12]} 23. Qd1 {[%emt 0:02:40]} g6 {[%emt 0:08:49]} 24. Nc3 {[%emt 0:02:01]} exf3 {[%emt 0:00:07]} 25. Qxf3 {[%emt 0:00:20]} Qe6 {[%emt 0:01:52]} 26. Qf4 {[%emt 0:02:26]} Kg7 {[%emt 0:02:23]} 27. Qd4 {[%emt 0:01:34]} Qg4+ {[%emt 0:01:18]} 28. Qxg4 {[%emt 0:00:14]} Nxg4 {[%emt 0:00:02]} 29. Nd5 {[%emt 0:01:16]} Nd7 {[%emt 0:00:19]} 30. Bd3 {[%emt 0:01:18]} a5 {[%emt 0:00:16]} 31. Bb5 {[%emt 0:00:48]} Ngf6 {[%emt 0:00:23]} 32. Ne7 {[%emt 0:00:24]} 1/2-1/2